[Event "The Kvibergspelen 2023"]
[Site "Kviberg Park Hotel & Conference, Krutvagen 2, Gothenburg, Sweden"]
[Date "2023.09.15"]
[Round "1.12"]
[White "Kistrup, Nicolai"]
[Black "Gustavsson, Andreas"]
[Result "1-0"]
[TimeControl "15 minutes + 5 seconds per move from move one (Round 1 - 4) / 90 minutes + 30 seconds per move from move one (Round 5 - 8)"]
[WhiteTitle "FM"]
[WhiteFideId "1444816"]
[BlackFideId "1738895"]
[WhiteElo "2359"]
[BlackElo "1821"]

1. d4 {[%clk 00:15:08]} Nf6 {[%clk 00:15:08]} {[%emt 00:00:02]} 2. c4 {[%clk
00:15:12]} {[%emt 00:00:02]} e6 {[%clk 00:15:12]} {[%emt 00:00:02]} 3. Nf3
{[%clk 00:15:13]} {[%emt 00:00:03]} b6 {[%clk 00:15:14]} {[%emt 00:00:04]} 4.
g3 {[%clk 00:15:07]} {[%emt 00:00:10]} Bb7 {[%clk 00:15:16]} {[%emt 00:00:02]}
5. Bg2 {[%clk 00:15:11]} {[%emt 00:00:02]} Bb4+ {[%clk 00:15:18]} {[%emt
00:00:03]} 6. Bd2 {[%clk 00:14:59]} {[%emt 00:00:17]} Qe7 {[%clk 00:14:48]}
{[%emt 00:00:35]} 7. O-O {[%clk 00:14:52]} {[%emt 00:00:12]} O-O {[%clk
00:14:33]} {[%emt 00:00:19]} 8. Bf4 {[%clk 00:13:49]} {[%emt 00:01:08]} d5
{[%clk 00:13:25]} {[%emt 00:01:13]} 9. Ne5 {[%clk 00:12:49]} {[%emt 00:01:05]}
c6 {[%clk 00:11:08]} {[%emt 00:02:22]} 10. Nc3 {[%clk 00:11:48]} {[%emt
00:01:06]} Nbd7 {[%clk 00:10:07]} {[%emt 00:01:06]} 11. Nxd7 {[%clk 00:09:15]}
{[%emt 00:02:39]} Nxd7 {[%clk 00:08:39]} {[%emt 00:01:32]} 12. Qb3 {[%clk
00:08:53]} {[%emt 00:00:27]} Nf6 {[%clk 00:03:57]} {[%emt 00:04:47]} 13. a3
{[%clk 00:08:19]} {[%emt 00:00:40]} Bd6 {[%clk 00:03:17]} {[%emt 00:00:45]} 14.
Bxd6 {[%clk 00:06:14]} {[%emt 00:02:10]} Qxd6 {[%clk 00:03:19]} {[%emt
00:00:02]} 15. c5 {[%clk 00:04:44]} {[%emt 00:01:35]} Qc7 {[%clk 00:03:11]}
{[%emt 00:00:13]} 16. cxb6 {[%clk 00:04:21]} {[%emt 00:00:29]} Qxb6 {[%clk
00:02:36]} {[%emt 00:00:40]} 17. Qd1 {[%clk 00:04:20]} {[%emt 00:00:05]} Rac8
{[%clk 00:01:11]} {[%emt 00:01:30]} 18. Na4 {[%clk 00:03:59]} {[%emt 00:00:26]}
Qc7 {[%clk 00:00:43]} {[%emt 00:00:34]} 19. Qd3 {[%clk 00:03:46]} {[%emt
00:00:17]} Nd7 {[%clk 00:00:29]} {[%emt 00:00:19]} 20. Rfc1 {[%clk 00:03:33]}
{[%emt 00:00:18]} Qb8 {[%clk 00:00:08]} {[%emt 00:00:26]} 21. b4 {[%clk
00:03:22]} {[%emt 00:00:16]} f5 {[%clk 00:00:10]} {[%emt 00:00:03]} 22. Nc5
{[%clk 00:03:13]} {[%emt 00:00:14]} Nxc5 {[%clk 00:00:13]} {[%emt 00:00:03]} 23.
Rxc5 {[%clk 00:03:14]} {[%emt 00:00:05]} Qd6 {[%clk 00:00:10]} {[%emt
00:00:07]} 24. Rac1 {[%clk 00:03:09]} {[%emt 00:00:10]} f4 {[%clk 00:00:13]}
{[%emt 00:00:01]} 25. e4 {[%clk 00:02:49]} {[%emt 00:00:26]} Qe7 {[%clk
00:00:06]} {[%emt 00:00:12]} 26. Re1 {[%clk 00:02:36]} {[%emt 00:00:18]} Qg5
{[%clk 00:00:08]} {[%emt 00:00:03]} 27. exd5 {[%clk 00:01:05]} {[%emt
00:01:35]} exd5 {[%clk 00:00:11]} {[%emt 00:00:03]} 28. Re5 {[%clk 00:01:08]}
{[%emt 00:00:02]} Qf6 {[%clk 00:00:08]} {[%emt 00:00:08]} 29. Bh3 {[%clk
00:00:52]} {[%emt 00:00:20]} Rce8 {[%clk 00:00:10]} {[%emt 00:00:03]} 30. Qe2
{[%clk 00:00:48]} {[%emt 00:00:10]} Rxe5 {[%clk 00:00:11]} {[%emt 00:00:04]} 31.
Qxe5 {[%clk 00:00:43]} {[%emt 00:00:09]} Qxe5 {[%clk 00:00:12]} {[%emt
00:00:04]} 32. dxe5 {[%clk 00:00:47]} {[%emt 00:00:01]} fxg3 {[%clk 00:00:09]}
{[%emt 00:00:07]} 33. hxg3 {[%clk 00:00:49]} {[%emt 00:00:03]} Re8 {[%clk
00:00:11]} {[%emt 00:00:04]} 34. f4 {[%clk 00:00:52]} Kf7 {[%clk 00:00:09]}
{[%emt 00:00:07]} 35. Bd7 {[%clk 00:00:54]} {[%emt 00:00:03]} Rd8 {[%clk
00:00:11]} {[%emt 00:00:04]} 36. Bxc6 {[%clk 00:00:55]} {[%emt 00:00:03]} Bxc6
{[%clk 00:00:14]} {[%emt 00:00:03]} 37. Rxc6 {[%clk 00:00:58]} {[%emt
00:00:01]} d4 {[%clk 00:00:07]} {[%emt 00:00:13]} 38. Kf2 {[%clk 00:01:02]}
{[%emt 00:00:01]} Ke7 {[%clk 00:00:07]} {[%emt 00:00:05]} 39. Ke2 {[%clk
00:00:58]} {[%emt 00:00:09]} Rd7 {[%clk 00:00:07]} {[%emt 00:00:05]} 40. Kd3
{[%clk 00:01:01]} {[%emt 00:00:01]} g6 {[%clk 00:00:08]} {[%emt 00:00:04]} 41.
b5 {[%clk 00:01:00]} {[%emt 00:00:06]} g5 {[%clk 00:00:06]} {[%emt 00:00:07]}
42. Rh6 {[%clk 00:00:51]} {[%emt 00:00:14]} Kd8 {[%clk 00:00:09]} {[%emt
00:00:03]} 43. Rd6 {[%clk 00:00:37]} {[%emt 00:00:19]} Rxd6 {[%clk 00:00:06]}
{[%emt 00:00:07]} 44. exd6 {[%clk 00:00:40]} {[%emt 00:00:02]} gxf4 {[%clk
00:00:10]} {[%emt 00:00:01]} 45. gxf4 {[%clk 00:00:44]} {[%emt 00:00:02]} Kd7
{[%clk 00:00:13]} {[%emt 00:00:01]} 46. Kxd4 {[%clk 00:00:44]} {[%emt
00:00:05]} Kxd6 {[%clk 00:00:17]} {[%emt 00:00:02]} 47. a4 {[%clk 00:00:46]}
{[%emt 00:00:02]} h5 {[%clk 00:00:19]} {[%emt 00:00:03]} 48. Ke4 {[%clk
00:00:39]} {[%emt 00:00:12]} h4 {[%clk 00:00:19]} {[%emt 00:00:05]} 49. Kf3
{[%clk 00:00:39]} {[%emt 00:00:05]} Kc5 {[%clk 00:00:15]} {[%emt 00:00:09]} 50.
Kg4 {[%clk 00:00:38]} {[%emt 00:00:07]} Kb4 {[%clk 00:00:19]} {[%emt 00:00:01]}
51. f5 {[%clk 00:00:41]} {[%emt 00:00:02]} Kxa4 {[%clk 00:00:20]} {[%emt
00:00:03]} 52. f6 {[%clk 00:00:45]} {[%emt 00:00:01]} Kxb5 {[%clk 00:00:23]}
{[%emt 00:00:03]} 53. f7 {[%clk 00:00:49]} 1-0

[Event "The Kvibergspelen 2023"]
[Site "Kviberg Park Hotel & Conference, Krutvagen 2, Gothenburg, Sweden"]
[Date "2023.09.15"]
[Round "1.13"]
[White "Magnussen, Pal"]
[Black "Hamark, Jesper"]
[Result "0-1"]
[TimeControl "15 minutes + 5 seconds per move from move one (Round 1 - 4) / 90 minutes + 30 seconds per move from move one (Round 5 - 8)"]
[WhiteFideId "1711814"]
[BlackFideId "1704338"]
[WhiteElo "1820"]
[BlackElo "2342"]

1. e4 {[%clk 00:15:06]} {[%emt 00:00:03]} c5 {[%clk 00:15:08]} {[%emt
00:00:02]} 2. Nf3 {[%clk 00:15:06]} {[%emt 00:00:06]} g6 {[%clk 00:15:11]}
{[%emt 00:00:02]} 3. d4 {[%clk 00:14:51]} {[%emt 00:00:20]} cxd4 {[%clk
00:15:12]} {[%emt 00:00:04]} 4. Nxd4 {[%clk 00:14:53]} {[%emt 00:00:03]} Bg7
{[%clk 00:15:14]} {[%emt 00:00:02]} 5. Be3 {[%clk 00:14:33]} {[%emt 00:00:26]}
Nf6 {[%clk 00:14:28]} {[%emt 00:00:51]} 6. Nc3 {[%clk 00:14:25]} {[%emt
00:00:13]} Nc6 {[%clk 00:14:31]} {[%emt 00:00:02]} 7. Be2 {[%clk 00:14:07]}
{[%emt 00:00:22]} O-O {[%clk 00:13:51]} {[%emt 00:00:46]} 8. O-O {[%clk
00:13:47]} {[%emt 00:00:25]} d6 {[%clk 00:12:52]} {[%emt 00:01:03]} 9. f4
{[%clk 00:13:09]} {[%emt 00:00:43]} Bd7 {[%clk 00:09:15]} {[%emt 00:03:43]} 10.
Nb3 {[%clk 00:12:43]} {[%emt 00:00:31]} Be6 {[%clk 00:08:43]} {[%emt 00:00:37]}
11. f5 {[%clk 00:11:02]} {[%emt 00:01:46]} Bxb3 {[%clk 00:08:45]} {[%emt
00:00:03]} 12. axb3 {[%clk 00:10:34]} {[%emt 00:00:33]} a6 {[%clk 00:08:49]} 13.
Kh1 {[%clk 00:08:55]} {[%emt 00:01:43]} Ne5 {[%clk 00:08:49]} {[%emt 00:00:05]}
14. Qd2 {[%clk 00:08:08]} {[%emt 00:00:53]} Rc8 {[%clk 00:08:37]} {[%emt
00:00:17]} 15. Bf4 {[%clk 00:06:56]} {[%emt 00:01:17]} Ned7 {[%clk 00:06:58]}
{[%emt 00:01:44]} 16. Bf3 {[%clk 00:05:13]} {[%emt 00:01:47]} Qc7 {[%clk
00:06:53]} {[%emt 00:00:10]} 17. b4 {[%clk 00:05:06]} {[%emt 00:00:13]} Nb6
{[%clk 00:06:34]} {[%emt 00:00:24]} 18. b5 {[%clk 00:04:10]} {[%emt 00:01:01]}
axb5 {[%clk 00:05:47]} {[%emt 00:00:52]} 19. Qf2 {[%clk 00:02:31]} {[%emt
00:01:45]} b4 {[%clk 00:04:05]} {[%emt 00:01:46]} 20. Nb5 {[%clk 00:02:18]}
{[%emt 00:00:18]} Qc5 {[%clk 00:03:52]} {[%emt 00:00:18]} 21. Nd4 {[%clk
00:02:16]} {[%emt 00:00:07]} Nxe4 {[%clk 00:03:13]} {[%emt 00:00:44]} 22. Bxe4
{[%clk 00:02:12]} {[%emt 00:00:09]} Qxd4 {[%clk 00:03:09]} {[%emt 00:00:09]} 23.
Qxd4 {[%clk 00:01:59]} {[%emt 00:00:18]} Bxd4 {[%clk 00:03:12]} {[%emt
00:00:02]} 24. fxg6 {[%clk 00:01:59]} {[%emt 00:00:05]} hxg6 {[%clk 00:03:06]}
{[%emt 00:00:11]} 25. c3 {[%clk 00:01:51]} {[%emt 00:00:12]} bxc3 {[%clk
00:02:56]} {[%emt 00:00:15]} 26. bxc3 Bxc3 {[%clk 00:03:00]} 27. Rab1 {[%clk
00:01:47]} {[%emt 00:00:12]} Bd4 {[%clk 00:03:00]} {[%emt 00:00:05]} 28. Bh6
{[%clk 00:01:48]} {[%emt 00:00:05]} Rfe8 {[%clk 00:02:43]} {[%emt 00:00:21]} 29.
Rb3 {[%clk 00:01:28]} {[%emt 00:00:26]} d5 {[%clk 00:02:39]} {[%emt 00:00:09]}
30. Bb1 {[%clk 00:01:22]} {[%emt 00:00:11]} Rc6 {[%clk 00:01:34]} {[%emt
00:01:10]} 31. Bd3 {[%clk 00:01:06]} {[%emt 00:00:20]} Rc3 {[%clk 00:01:31]}
{[%emt 00:00:09]} 32. Rxc3 {[%clk 00:01:06]} {[%emt 00:00:05]} Bxc3 {[%clk
00:01:34]} {[%emt 00:00:02]} 33. h4 {[%clk 00:00:41]} {[%emt 00:00:29]} Bg7
{[%clk 00:01:23]} {[%emt 00:00:16]} 34. Bc1 {[%clk 00:00:34]} {[%emt 00:00:11]}
e5 {[%clk 00:01:23]} {[%emt 00:00:06]} 35. Bb5 {[%clk 00:00:34]} {[%emt
00:00:06]} Rc8 {[%clk 00:01:20]} {[%emt 00:00:07]} 36. Ba3 {[%clk 00:00:32]}
{[%emt 00:00:07]} Nc4 {[%clk 00:01:13]} {[%emt 00:00:13]} 37. Be7 {[%clk
00:00:32]} {[%emt 00:00:05]} e4 {[%clk 00:01:07]} {[%emt 00:00:10]} 38. Bg5
{[%clk 00:00:31]} {[%emt 00:00:06]} d4 {[%clk 00:00:58]} {[%emt 00:00:15]} 39.
Ba4 {[%clk 00:00:20]} {[%emt 00:00:15]} d3 {[%clk 00:00:47]} {[%emt 00:00:17]}
40. Bb3 {[%clk 00:00:20]} {[%emt 00:00:05]} b5 {[%clk 00:00:51]} {[%emt
00:00:01]} 0-1

[Event "The Kvibergspelen 2023"]
[Site "Kviberg Park Hotel & Conference, Krutvagen 2, Gothenburg, Sweden"]
[Date "2023.09.15"]
[Round "1.14"]
[White "Jacobsen, Mikkel Manosri"]
[Black "Hedin, Niclas"]
[Result "1-0"]
[TimeControl "15 minutes + 5 seconds per move from move one (Round 1 - 4) / 90 minutes + 30 seconds per move from move one (Round 5 - 8)"]
[WhiteTitle "FM"]
[WhiteFideId "1444514"]
[BlackFideId "1720708"]
[WhiteElo "2313"]
[BlackElo "1813"]

1. d4 {[%clk 00:15:07]} {[%emt 00:00:02]} d5 {[%clk 00:15:09]} {[%emt
00:00:01]} 2. Bf4 {[%clk 00:15:10]} {[%emt 00:00:02]} c5 {[%clk 00:15:12]}
{[%emt 00:00:02]} 3. e3 {[%clk 00:15:14]} {[%emt 00:00:01]} Nc6 {[%clk
00:15:14]} {[%emt 00:00:03]} 4. c3 {[%clk 00:15:00]} {[%emt 00:00:19]} Bf5
{[%clk 00:15:04]} {[%emt 00:00:14]} 5. Nf3 {[%clk 00:15:00]} {[%emt 00:00:06]}
Nf6 {[%clk 00:14:40]} {[%emt 00:00:28]} 6. Nbd2 {[%clk 00:14:58]} {[%emt
00:00:08]} e6 {[%clk 00:14:38]} {[%emt 00:00:07]} 7. Bb5 {[%clk 00:15:01]}
{[%emt 00:00:03]} a6 {[%clk 00:14:08]} {[%emt 00:00:35]} 8. Bxc6+ {[%clk
00:14:48]} {[%emt 00:00:17]} bxc6 {[%clk 00:14:10]} {[%emt 00:00:02]} 9. Ne5
{[%clk 00:14:32]} {[%emt 00:00:21]} Qb6 {[%clk 00:13:26]} {[%emt 00:00:50]} 10.
g4 {[%clk 00:13:55]} {[%emt 00:00:42]} Be4 {[%clk 00:11:23]} {[%emt 00:02:08]}
11. f3 {[%clk 00:13:50]} {[%emt 00:00:10]} Bg6 {[%clk 00:11:26]} {[%emt
00:00:02]} 12. h4 {[%clk 00:13:51]} {[%emt 00:00:05]} h5 {[%clk 00:08:53]}
{[%emt 00:02:37]} 13. g5 {[%clk 00:13:28]} {[%emt 00:00:27]} Nd7 {[%clk
00:08:44]} {[%emt 00:00:15]} 14. Nxg6 {[%clk 00:13:22]} {[%emt 00:00:11]} fxg6
{[%clk 00:08:46]} {[%emt 00:00:03]} 15. Qc2 {[%clk 00:12:50]} {[%emt 00:00:36]}
O-O-O {[%clk 00:06:53]} {[%emt 00:01:58]} 16. Qxg6 {[%clk 00:12:22]} {[%emt
00:00:33]} cxd4 {[%clk 00:06:55]} {[%emt 00:00:04]} 17. cxd4 {[%clk 00:11:20]}
{[%emt 00:01:06]} c5 {[%clk 00:06:44]} {[%emt 00:00:16]} 18. O-O {[%clk
00:10:01]} {[%emt 00:01:24]} Bd6 {[%clk 00:06:02]} {[%emt 00:00:48]} 19. dxc5
{[%clk 00:07:05]} {[%emt 00:03:02]} Bxc5 {[%clk 00:05:09]} {[%emt 00:00:56]} 20.
Rac1 {[%clk 00:06:30]} {[%emt 00:00:40]} Kb7 {[%clk 00:05:12]} {[%emt
00:00:03]} 21. Rc3 {[%clk 00:06:34]} {[%emt 00:00:01]} Ka8 {[%clk 00:01:36]}
{[%emt 00:03:42]} 22. Nb3 {[%clk 00:04:58]} {[%emt 00:01:41]} e5 {[%clk
00:01:21]} {[%emt 00:00:20]} 23. Qxb6 {[%clk 00:04:13]} {[%emt 00:00:49]} Bxb6
{[%clk 00:01:25]} {[%emt 00:00:02]} 24. Bg3 {[%clk 00:04:15]} {[%emt 00:00:02]}
Rc8 {[%clk 00:01:23]} {[%emt 00:00:07]} 25. Rfc1 {[%clk 00:03:17]} {[%emt
00:01:03]} Kb7 {[%clk 00:01:27]} {[%emt 00:00:02]} 26. Kf2 {[%clk 00:03:20]}
{[%emt 00:00:01]} Rxc3 {[%clk 00:00:43]} {[%emt 00:00:49]} 27. Rxc3 {[%clk
00:03:23]} {[%emt 00:00:02]} Rc8 {[%emt 00:00:04]} 28. Rxc8 {[%clk 00:03:25]}
{[%emt 00:00:01]} Kxc8 {[%clk 00:00:51]} {[%emt 00:00:01]} 29. Ke2 {[%clk
00:03:20]} {[%emt 00:00:09]} Kb7 {[%clk 00:00:53]} {[%emt 00:00:03]} 30. Nc1
{[%clk 00:03:09]} {[%emt 00:00:16]} g6 {[%clk 00:00:42]} {[%emt 00:00:16]} 31.
Nd3 {[%clk 00:03:05]} {[%emt 00:00:09]} Bc7 {[%clk 00:00:45]} {[%emt 00:00:03]}
32. e4 {[%clk 00:03:02]} {[%emt 00:00:07]} dxe4 {[%clk 00:00:40]} {[%emt
00:00:10]} 33. fxe4 {[%clk 00:03:05]} {[%emt 00:00:02]} a5 {[%clk 00:00:31]}
{[%emt 00:00:14]} 34. a4 {[%clk 00:03:02]} {[%emt 00:00:09]} Kc6 {[%clk
00:00:31]} {[%emt 00:00:04]} 35. Bf2 {[%clk 00:02:40]} {[%emt 00:00:27]} Bd6
{[%clk 00:00:32]} {[%emt 00:00:05]} 36. b3 {[%clk 00:02:33]} {[%emt 00:00:11]}
Nf8 {[%clk 00:00:35]} {[%emt 00:00:01]} 37. Bg3 {[%clk 00:02:14]} {[%emt
00:00:25]} Nd7 {[%clk 00:00:40]} {[%emt 00:00:01]} 38. Be1 {[%clk 00:02:14]}
{[%emt 00:00:04]} Kb6 {[%clk 00:00:32]} {[%emt 00:00:13]} 39. Bc3 {[%clk
00:02:16]} {[%emt 00:00:03]} Ka6 {[%clk 00:00:29]} {[%emt 00:00:09]} 40. Kd2
{[%clk 00:02:04]} {[%emt 00:00:16]} Kb6 {[%clk 00:00:33]} {[%emt 00:00:01]} 41.
Nb2 {[%clk 00:02:01]} {[%emt 00:00:09]} Nc5 {[%clk 00:00:34]} {[%emt 00:00:03]}
42. Nc4+ {[%clk 00:02:04]} {[%emt 00:00:02]} Kc7 {[%clk 00:00:35]} {[%emt
00:00:03]} 43. Bxe5 {[%clk 00:01:34]} {[%emt 00:00:36]} Bxe5 {[%clk 00:00:07]}
{[%emt 00:00:33]} 44. Nxe5 {[%clk 00:01:37]} {[%emt 00:00:02]} Nxb3+ {[%clk
00:00:08]} {[%emt 00:00:04]} 45. Kc3 {[%clk 00:01:13]} {[%emt 00:00:29]} Nc5
{[%clk 00:00:11]} {[%emt 00:00:01]} 46. Nxg6 {[%clk 00:01:16]} {[%emt
00:00:03]} Nxe4+ {[%clk 00:00:14]} {[%emt 00:00:02]} 47. Kd4 {[%clk 00:01:10]}
{[%emt 00:00:12]} Nd6 {[%clk 00:00:11]} {[%emt 00:00:07]} 48. Ke5 {[%clk
00:01:12]} {[%emt 00:00:03]} Nc4+ {[%clk 00:00:06]} {[%emt 00:00:11]} 49. Ke6
{[%clk 00:01:15]} {[%emt 00:00:01]} Nb6 {[%clk 00:00:07]} {[%emt 00:00:04]} 50.
Ne5 {[%clk 00:01:01]} {[%emt 00:00:19]} Nxa4 {[%clk 00:00:10]} {[%emt
00:00:02]} 51. g6 {[%clk 00:01:03]} {[%emt 00:00:04]} Nc5+ {[%clk 00:00:14]}
{[%emt 00:00:01]} 52. Ke7 {[%clk 00:01:02]} {[%emt 00:00:05]} 1-0

[Event "The Kvibergspelen 2023"]
[Site "Kviberg Park Hotel & Conference, Krutvagen 2, Gothenburg, Sweden"]
[Date "2023.09.15"]
[Round "1.15"]
[White "Andersson, Christian"]
[Black "Poley, Vladimir"]
[Result "0-1"]
[TimeControl "15 minutes + 5 seconds per move from move one (Round 1 - 4) / 90 minutes + 30 seconds per move from move one (Round 5 - 8)"]
[BlackTitle "IM"]
[WhiteFideId "1724789"]
[BlackFideId "13500090"]
[WhiteElo "1806"]
[BlackElo "2284"]

1. c4 {[%clk 00:15:06]} {[%emt 00:00:03]} g6 {[%clk 00:15:08]} {[%emt
00:00:03]} 2. g3 {[%clk 00:15:05]} {[%emt 00:00:05]} Bg7 {[%clk 00:15:10]}
{[%emt 00:00:04]} 3. Bg2 {[%clk 00:15:09]} Nc6 {[%clk 00:15:11]} {[%emt
00:00:04]} 4. Nc3 {[%clk 00:15:06]} {[%emt 00:00:07]} e5 {[%clk 00:15:14]}
{[%emt 00:00:03]} 5. d3 {[%clk 00:14:07]} {[%emt 00:01:04]} d6 {[%clk
00:15:15]} {[%emt 00:00:03]} 6. Nf3 {[%clk 00:14:00]} {[%emt 00:00:13]} Bg4
{[%clk 00:15:15]} {[%emt 00:00:05]} 7. O-O {[%clk 00:14:00]} {[%emt 00:00:04]}
Qc8 {[%clk 00:15:15]} {[%emt 00:00:05]} 8. Nd5 {[%clk 00:13:26]} {[%emt
00:00:38]} Nd8 {[%clk 00:15:09]} {[%emt 00:00:12]} 9. h3 {[%clk 00:12:30]}
{[%emt 00:01:02]} Bd7 {[%clk 00:15:11]} {[%emt 00:00:03]} 10. Kh2 {[%clk
00:10:37]} {[%emt 00:01:58]} c6 {[%clk 00:15:08]} {[%emt 00:00:08]} 11. Nc3
{[%clk 00:10:37]} {[%emt 00:00:04]} h5 {[%clk 00:15:11]} {[%emt 00:00:03]} 12.
h4 {[%clk 00:10:08]} {[%emt 00:00:35]} Nh6 {[%clk 00:14:54]} {[%emt 00:00:21]}
13. Qb3 {[%clk 00:09:08]} {[%emt 00:01:03]} Ng4+ {[%clk 00:13:49]} {[%emt
00:01:12]} 14. Kg1 {[%clk 00:09:10]} {[%emt 00:00:03]} O-O {[%clk 00:13:25]}
{[%emt 00:00:30]} 15. Qa3 {[%clk 00:09:04]} {[%emt 00:00:09]} Qc7 {[%clk
00:13:17]} {[%emt 00:00:13]} 16. Bd2 {[%clk 00:08:41]} {[%emt 00:00:29]} Ne6
{[%clk 00:12:45]} {[%emt 00:00:37]} 17. Rac1 {[%clk 00:08:36]} {[%emt
00:00:08]} f5 {[%clk 00:12:11]} {[%emt 00:00:41]} 18. Ng5 {[%clk 00:08:12]}
{[%emt 00:00:29]} Nxg5 {[%clk 00:11:13]} {[%emt 00:01:04]} 19. Bxg5 {[%clk
00:08:09]} {[%emt 00:00:05]} Rf7 {[%clk 00:10:33]} {[%emt 00:00:46]} 20. b4
{[%clk 00:06:32]} {[%emt 00:01:41]} f4 {[%clk 00:09:59]} {[%emt 00:00:41]} 21.
b5 {[%clk 00:06:17]} {[%emt 00:00:18]} Bf8 {[%clk 00:08:24]} {[%emt 00:01:42]}
22. Qb3 {[%clk 00:06:13]} {[%emt 00:00:08]} Be6 {[%clk 00:07:33]} {[%emt
00:00:56]} 23. Ne4 {[%clk 00:05:29]} {[%emt 00:00:49]} c5 {[%clk 00:05:27]}
{[%emt 00:02:12]} 24. Nc3 {[%clk 00:05:17]} {[%emt 00:00:17]} Bg7 {[%clk
00:04:39]} {[%emt 00:00:52]} 25. Nd5 {[%clk 00:05:13]} {[%emt 00:00:09]} Qc8
{[%clk 00:03:07]} {[%emt 00:01:38]} 26. Ne7+ {[%clk 00:04:37]} Rxe7 {[%clk
00:03:10]} {[%emt 00:00:42]} 27. Bxe7 {[%emt 00:00:08]} Qd7 {[%clk 00:03:09]}
{[%emt 00:00:03]} 28. Bg5 {[%clk 00:04:29]} {[%emt 00:00:14]} Rf8 {[%clk
00:03:05]} {[%emt 00:00:08]} 29. Be4 {[%clk 00:04:21]} {[%emt 00:00:12]} Bf5
{[%clk 00:03:01]} {[%emt 00:00:10]} 30. e3 {[%clk 00:03:34]} {[%emt 00:00:51]}
Bxe4 {[%clk 00:03:00]} {[%emt 00:00:08]} 31. dxe4 {[%clk 00:03:34]} f3 {[%clk
00:03:02]} {[%emt 00:00:08]} 32. Rcd1 {[%clk 00:03:29]} Nf6 {[%clk 00:02:52]}
{[%emt 00:00:25]} 33. Qd3 {[%clk 00:03:30]} {[%emt 00:00:03]} Qh3 {[%clk
00:02:52]} {[%emt 00:00:05]} 0-1

[Event "The Kvibergspelen 2023"]
[Site "Kviberg Park Hotel & Conference, Krutvagen 2, Gothenburg, Sweden"]
[Date "2023.09.15"]
[Round "1.16"]
[White "Falkevall, Axel"]
[Black "Lundback, Bengt"]
[Result "1-0"]
[TimeControl "15 minutes + 5 seconds per move from move one (Round 1 - 4) / 90 minutes + 30 seconds per move from move one (Round 5 - 8)"]
[WhiteTitle "FM"]
[WhiteFideId "1735560"]
[BlackFideId "1737350"]
[WhiteElo "2276"]
[BlackElo "1805"]

1. e4 {[%clk 00:15:07]} {[%emt 00:00:02]} d6 {[%clk 00:15:09]} {[%emt
00:00:02]} 2. d4 {[%clk 00:15:09]} {[%emt 00:00:03]} Nf6 {[%clk 00:15:12]}
{[%emt 00:00:02]} 3. Nc3 {[%clk 00:15:13]} {[%emt 00:00:01]} c6 {[%clk
00:15:15]} {[%emt 00:00:03]} 4. a4 {[%clk 00:14:59]} {[%emt 00:00:18]} Qa5
{[%clk 00:15:14]} {[%emt 00:00:06]} 5. Bd3 {[%clk 00:14:50]} {[%emt 00:00:14]}
e5 {[%clk 00:15:13]} {[%emt 00:00:05]} 6. Nf3 {[%clk 00:14:46]} {[%emt
00:00:09]} Bg4 {[%clk 00:15:12]} {[%emt 00:00:06]} 7. Be3 {[%clk 00:14:42]}
{[%emt 00:00:09]} Be7 {[%clk 00:15:13]} {[%emt 00:00:05]} 8. O-O {[%clk
00:14:41]} {[%emt 00:00:06]} O-O {[%clk 00:15:14]} {[%emt 00:00:04]} 9. h3
{[%clk 00:14:39]} {[%emt 00:00:07]} Bh5 {[%clk 00:14:56]} {[%emt 00:00:22]} 10.
Be2 {[%clk 00:14:18]} {[%emt 00:00:26]} Nbd7 {[%clk 00:14:56]} {[%emt
00:00:05]} 11. Nh4 {[%clk 00:13:25]} {[%emt 00:00:58]} Bxe2 12. Qxe2 {[%clk
00:13:29]} Nxe4 {[%clk 00:13:02]} {[%emt 00:01:45]} 13. Nf5 {[%clk 00:13:04]}
{[%emt 00:00:29]} Nxc3 {[%clk 00:11:27]} {[%emt 00:01:41]} 14. Nxe7+ {[%clk
00:13:07]} {[%emt 00:00:02]} Kh8 {[%clk 00:11:31]} {[%emt 00:00:01]} 15. bxc3
{[%clk 00:13:10]} {[%emt 00:00:02]} g6 {[%clk 00:10:56]} {[%emt 00:00:40]} 16.
Qg4 {[%clk 00:12:19]} {[%emt 00:00:56]} f5 {[%clk 00:10:31]} {[%emt 00:00:30]}
17. Qh4 {[%clk 00:11:28]} {[%emt 00:00:56]} Rf6 {[%clk 00:08:52]} {[%emt
00:01:43]} 18. dxe5 {[%clk 00:11:24]} {[%emt 00:00:09]} Qxe5 {[%clk 00:05:05]}
{[%emt 00:03:52]} 19. Nxg6+ {[%clk 00:11:09]} {[%emt 00:00:19]} 1-0